Workbook

Sheet Unos na platni spisak
B1: KALKULATOR PLATNOG SPISKA | K1: KRAJ PERIODA: | L1: 41372 | N1: IME PREDUZEĆA: | P1: ADVENTURE WORKS
B3: ID | C3: Ime zaposlenog | D3: Red. radni časovi | E3: Časovi odmora | F3: Časovi bolovanja | G3: Prekovremeni časovi | H3: Stopa prekovremenog rada | I3: Bruto dohodak | J3: Takse i ugovori | K3: Ostali ugovori | L3: Neto dohodak | N3: Tarifa po času | O3: Status takse | P3: Državne doz. | Q3: Državna taksa | R3: Državni porez dobitka | S3: Taksa socijalnog osiguranja | T3: Taksa za medicinsku negu | U3: Ukupne zadržane takse | V3: Dedukcija osiguranja | W3: Ostala red. dedukcija | X3: Ukupne red. dedukcije
B4: 1001 | C4: Toma Simić | D4: 50 | E4: 5 | F4: 1 | I4: =SUM(Zaposleni[[#This Row],[Red. radni časovi]:[Časovi bolovanja]])*Zaposleni[[#This Row],[Tarifa po času]]+Zaposleni[[#This Row],[Prekovremeni časovi]]*Zaposleni[[#This Row],[Stopa prekovremenog rada]] -> 560 | J4: =Zaposleni[[#This Row],[Bruto dohodak]]*Zaposleni[[#This Row],[Ukupne zadržane takse]] + Zaposleni[[#This Row],[Ukupne red. dedukcije]] -> 273.08 | K4: 20 | L4: =Zaposleni[[#This Row],[Bruto dohodak]]-Zaposleni[[#This Row],[Takse i ugovori]]-Zaposleni[[#This Row],[Ostali ugovori]] -> 266.92 | N4: 10 | O4: 1 | P4: 4 | Q4: 0.023 | R4: 0.28 | S4: 0.063 | T4: 0.0145 | U4: =SUM(Zaposleni[[#This Row],[Državna taksa]:[Taksa za medicinsku negu]]) -> 0.3805 | V4: 20 | W4: 40 | X4: =SUM(Zaposleni[[#This Row],[Dedukcija osiguranja]:[Ostala red. dedukcija]]) -> 60
B5: 1002 | C5: David Jović | D5: 40 | I5: =SUM(Zaposleni[[#This Row],[Red. radni časovi]:[Časovi bolovanja]])*Zaposleni[[#This Row],[Tarifa po času]]+Zaposleni[[#This Row],[Prekovremeni časovi]]*Zaposleni[[#This Row],[Stopa prekovremenog rada]] -> 320 | J5: =Zaposleni[[#This Row],[Bruto dohodak]]*Zaposleni[[#This Row],[Ukupne zadržane takse]] + Zaposleni[[#This Row],[Ukupne red. dedukcije]] -> 131.76 | L5: =Zaposleni[[#This Row],[Bruto dohodak]]-Zaposleni[[#This Row],[Takse i ugovori]]-Zaposleni[[#This Row],[Ostali ugovori]] -> 188.24 | N5: 8 | O5: 1 | P5: 1 | Q5: 0.023 | R5: 0.28 | S5: 0.063 | T5: 0.0145 | U5: =SUM(Zaposleni[[#This Row],[Državna taksa]:[Taksa za medicinsku negu]]) -> 0.3805 | V5: 0 | W5: 10 | X5: =SUM(Zaposleni[[#This Row],[Dedukcija osiguranja]:[Ostala red. dedukcija]]) -> 10
B6: 1003 | C6: Danijela Simić | D6: 35 | E6: 3 | I6: =SUM(Zaposleni[[#This Row],[Red. radni časovi]:[Časovi bolovanja]])*Zaposleni[[#This Row],[Tarifa po času]]+Zaposleni[[#This Row],[Prekovremeni časovi]]*Zaposleni[[#This Row],[Stopa prekovremenog rada]] -> 532 | J6: =Zaposleni[[#This Row],[Bruto dohodak]]*Zaposleni[[#This Row],[Ukupne zadržane takse]] + Zaposleni[[#This Row],[Ukupne red. dedukcije]] -> 240.426 | L6: =Zaposleni[[#This Row],[Bruto dohodak]]-Zaposleni[[#This Row],[Takse i ugovori]]-Zaposleni[[#This Row],[Ostali ugovori]] -> 291.574 | N6: 14 | O6: 1 | P6: 3 | Q6: 0.023 | R6: 0.28 | S6: 0.063 | T6: 0.0145 | U6: =SUM(Zaposleni[[#This Row],[Državna taksa]:[Taksa za medicinsku negu]]) -> 0.3805 | V6: 18 | W6: 20 | X6: =SUM(Zaposleni[[#This Row],[Dedukcija osiguranja]:[Ostala red. dedukcija]]) -> 38
B7: 1008 | C7: Sebastijan Morić | D7: 50 | E7: 5 | F7: 1 | I7: =SUM(Zaposleni[[#This Row],[Red. radni časovi]:[Časovi bolovanja]])*Zaposleni[[#This Row],[Tarifa po času]]+Zaposleni[[#This Row],[Prekovremeni časovi]]*Zaposleni[[#This Row],[Stopa prekovremenog rada]] -> 1120 | J7: =Zaposleni[[#This Row],[Bruto dohodak]]*Zaposleni[[#This Row],[Ukupne zadržane takse]] + Zaposleni[[#This Row],[Ukupne red. dedukcije]] -> 441.16 | L7: =Zaposleni[[#This Row],[Bruto dohodak]]-Zaposleni[[#This Row],[Takse i ugovori]]-Zaposleni[[#This Row],[Ostali ugovori]] -> 678.84 | N7: 20 | O7: 1 | P7: 0 | Q7: 0.023 | R7: 0.28 | S7: 0.063 | T7: 0.0145 | U7: =SUM(Zaposleni[[#This Row],[Državna taksa]:[Taksa za medicinsku negu]]) -> 0.3805 | V7: 15 | X7: =SUM(Zaposleni[[#This Row],[Dedukcija osiguranja]:[Ostala red. dedukcija]]) -> 15
B8: 1011 | C8: Izabela Senić | D8: 40 | G8: 2 | H8: 15 | I8: =SUM(Zaposleni[[#This Row],[Red. radni časovi]:[Časovi bolovanja]])*Zaposleni[[#This Row],[Tarifa po času]]+Zaposleni[[#This Row],[Prekovremeni časovi]]*Zaposleni[[#This Row],[Stopa prekovremenog rada]] -> 430 | J8: =Zaposleni[[#This Row],[Bruto dohodak]]*Zaposleni[[#This Row],[Ukupne zadržane takse]] + Zaposleni[[#This Row],[Ukupne red. dedukcije]] -> 223.615 | L8: =Zaposleni[[#This Row],[Bruto dohodak]]-Zaposleni[[#This Row],[Takse i ugovori]]-Zaposleni[[#This Row],[Ostali ugovori]] -> 206.385 | N8: 10 | O8: 1 | P8: 0 | Q8: 0.023 | R8: 0.28 | S8: 0.063 | T8: 0.0145 | U8: =SUM(Zaposleni[[#This Row],[Državna taksa]:[Taksa za medicinsku negu]]) -> 0.3805 | V8: 20 | W8: 40 | X8: =SUM(Zaposleni[[#This Row],[Dedukcija osiguranja]:[Ostala red. dedukcija]]) -> 60
B9: 1012 | C9: David Bojić | D9: 40 | E9: 5 | F9: 1 | I9: =SUM(Zaposleni[[#This Row],[Red. radni časovi]:[Časovi bolovanja]])*Zaposleni[[#This Row],[Tarifa po času]]+Zaposleni[[#This Row],[Prekovremeni časovi]]*Zaposleni[[#This Row],[Stopa prekovremenog rada]] -> 552 | J9: =Zaposleni[[#This Row],[Bruto dohodak]]*Zaposleni[[#This Row],[Ukupne zadržane takse]] + Zaposleni[[#This Row],[Ukupne red. dedukcije]] -> 270.036 | L9: =Zaposleni[[#This Row],[Bruto dohodak]]-Zaposleni[[#This Row],[Takse i ugovori]]-Zaposleni[[#This Row],[Ostali ugovori]] -> 281.964 | N9: 12 | O9: 1 | P9: 4 | Q9: 0.023 | R9: 0.28 | S9: 0.063 | T9: 0.0145 | U9: =SUM(Zaposleni[[#This Row],[Državna taksa]:[Taksa za medicinsku negu]]) -> 0.3805 | V9: 20 | W9: 40 | X9: =SUM(Zaposleni[[#This Row],[Dedukcija osiguranja]:[Ostala red. dedukcija]]) -> 60
B10: 1025 | C10: Ana Vesić | D10: 36 | F10: 2 | G10: 1 | H10: 18 | I10: =SUM(Zaposleni[[#This Row],[Red. radni časovi]:[Časovi bolovanja]])*Zaposleni[[#This Row],[Tarifa po času]]+Zaposleni[[#This Row],[Prekovremeni časovi]]*Zaposleni[[#This Row],[Stopa prekovremenog rada]] -> 474 | J10: =Zaposleni[[#This Row],[Bruto dohodak]]*Zaposleni[[#This Row],[Ukupne zadržane takse]] + Zaposleni[[#This Row],[Ukupne red. dedukcije]] -> 225.357 | K10: 25 | L10: =Zaposleni[[#This Row],[Bruto dohodak]]-Zaposleni[[#This Row],[Takse i ugovori]]-Zaposleni[[#This Row],[Ostali ugovori]] -> 223.643 | N10: 12 | O10: 1 | P10: 2 | Q10: 0.023 | R10: 0.28 | S10: 0.063 | T10: 0.0145 | U10: =SUM(Zaposleni[[#This Row],[Državna taksa]:[Taksa za medicinsku negu]]) -> 0.3805 | V10: 25 | W10: 20 | X10: =SUM(Zaposleni[[#This Row],[Dedukcija osiguranja]:[Ostala red. dedukcija]]) -> 45
B11: 1032 | C11: Luka Abramović | D11: 40 | E11: 5 | F11: 1 | I11: =SUM(Zaposleni[[#This Row],[Red. radni časovi]:[Časovi bolovanja]])*Zaposleni[[#This Row],[Tarifa po času]]+Zaposleni[[#This Row],[Prekovremeni časovi]]*Zaposleni[[#This Row],[Stopa prekovremenog rada]] -> 460 | J11: =Zaposleni[[#This Row],[Bruto dohodak]]*Zaposleni[[#This Row],[Ukupne zadržane takse]] + Zaposleni[[#This Row],[Ukupne red. dedukcije]] -> 175.03 | K11: 50 | L11: =Zaposleni[[#This Row],[Bruto dohodak]]-Zaposleni[[#This Row],[Takse i ugovori]]-Zaposleni[[#This Row],[Ostali ugovori]] -> 234.97 | N11: 10 | O11: 1 | P11: 3 | Q11: 0.023 | R11: 0.28 | S11: 0.063 | T11: 0.0145 | U11: =SUM(Zaposleni[[#This Row],[Državna taksa]:[Taksa za medicinsku negu]]) -> 0.3805 | X11: =SUM(Zaposleni[[#This Row],[Dedukcija osiguranja]:[Ostala red. dedukcija]]) -> 0
B12: 1049 | C12: David Lukić | D12: 40 | E12: 1 | I12: =SUM(Zaposleni[[#This Row],[Red. radni časovi]:[Časovi bolovanja]])*Zaposleni[[#This Row],[Tarifa po času]]+Zaposleni[[#This Row],[Prekovremeni časovi]]*Zaposleni[[#This Row],[Stopa prekovremenog rada]] -> 615 | J12: =Zaposleni[[#This Row],[Bruto dohodak]]*Zaposleni[[#This Row],[Ukupne zadržane takse]] + Zaposleni[[#This Row],[Ukupne red. dedukcije]] -> 259.0075 | K12: 23 | L12: =Zaposleni[[#This Row],[Bruto dohodak]]-Zaposleni[[#This Row],[Takse i ugovori]]-Zaposleni[[#This Row],[Ostali ugovori]] -> 332.9925 | N12: 15 | O12: 1 | P12: 2 | Q12: 0.023 | R12: 0.28 | S12: 0.063 | T12: 0.0145 | U12: =SUM(Zaposleni[[#This Row],[Državna taksa]:[Taksa za medicinsku negu]]) -> 0.3805 | V12: 25 | X12: =SUM(Zaposleni[[#This Row],[Dedukcija osiguranja]:[Ostala red. dedukcija]]) -> 25
B13: Ukupne vrednosti | C13: =SUBTOTAL(103,Zaposleni[Ime zaposlenog]) -> 9 | D13: =SUBTOTAL(109,Zaposleni[Red. radni časovi]) -> 371 | E13: =SUBTOTAL(109,Zaposleni[Časovi odmora]) -> 24 | F13: =SUBTOTAL(109,Zaposleni[Časovi bolovanja]) -> 6 | G13: =SUBTOTAL(109,Zaposleni[Prekovremeni časovi]) -> 3 | I13: =SUBTOTAL(109,Zaposleni[Bruto dohodak]) -> 5063 | J13: =SUBTOTAL(109,Zaposleni[Takse i ugovori]) -> 2239.4715 | K13: =SUBTOTAL(109,Zaposleni[Ostali ugovori]) -> 118 | L13: =SUBTOTAL(109,Zaposleni[Neto dohodak]) -> 2705.5285 | V13: =SUBTOTAL(109,Zaposleni[Dedukcija osiguranja]) -> 143 | W13: =SUBTOTAL(109,Zaposleni[Ostala red. dedukcija]) -> 170 | X13: =SUBTOTAL(109,Zaposleni[Ukupne red. dedukcije]) -> 313

Sheet predložak_odsečka (hidden)
C2: =Ime_preduzeća -> ADVENTURE WORKS
C3: PERIOD | D3: =Krajperioda -> 41372 | G3: IME | H3: =IFERROR(INDEX(Zaposleni[Ime zaposlenog],Odsečak),"") -> Toma Simić | K3: ID ZAPOSLENOG | L3: =IFERROR(INDEX(Zaposleni[ID],Odsečak),"") -> 1001
C4: Status takse | E4: =IFERROR(INDEX(Zaposleni[Status takse],Odsečak),"") -> 1 | G4: Državna izdvajanja (Od W-4) | I4: =IFERROR(INDEX(Zaposleni[Državne doz.],Odsečak),"") -> 4 | K4: Radni časovi | M4: =IFERROR(INDEX(Zaposleni[Red. radni časovi],Odsečak),"") -> 50
C5: Tarifa po času | E5: =IFERROR(INDEX(Zaposleni[Tarifa po času],Odsečak),"") -> 10 | G5: Stopa prekovremenog rada | I5: =IFERROR(INDEX(Zaposleni[Stopa prekovremenog rada],Odsečak),"") -> 0 | K5: Časovi bolovanja | M5: =IFERROR(INDEX(Zaposleni[Časovi bolovanja],Odsečak),"") -> 1
C6: Taksa socijalnog osiguranja | E6: =IFERROR(INDEX(Zaposleni[Taksa socijalnog osiguranja],Odsečak) * INDEX(Zaposleni[Bruto dohodak],Odsečak),"") -> 35.28 | G6: Državni porez dobitka | I6: =IFERROR(INDEX(Zaposleni[Državni porez dobitka],Odsečak) * INDEX(Zaposleni[Bruto dohodak],Odsečak),"") -> 156.8 | K6: Časovi odmora | M6: =IFERROR(INDEX(Zaposleni[Časovi odmora],Odsečak),"") -> 5
C7: Taksa za medicinsku negu | E7: =IFERROR(INDEX(Zaposleni[Taksa za medicinsku negu],Odsečak) * INDEX(Zaposleni[Bruto dohodak],Odsečak),"") -> 8.12 | G7: Državna taksa | I7: =IFERROR(INDEX(Zaposleni[Državna taksa],Odsečak) * INDEX(Zaposleni[Bruto dohodak],Odsečak),"") -> 12.88 | K7: Prekovremeni časovi | M7: =IFERROR(INDEX(Zaposleni[Prekovremeni časovi],Odsečak),"") -> 0
C8: Dedukcija osiguranja | E8: =IFERROR(INDEX(Zaposleni[Dedukcija osiguranja],Odsečak),"") -> 20 | G8: Ostala redovna dedukcija | I8: =IFERROR(INDEX(Zaposleni[Ostala red. dedukcija],Odsečak),"") -> 40 | K8: Bruto dohodak | M8: =IFERROR(INDEX(Zaposleni[Bruto dohodak],Odsečak),"") -> 560
C9: Ukupne takse i | E9: =IFERROR(INDEX(Zaposleni[Takse i ugovori],Odsečak),"") -> 273.08 | G9: Ostala dedukcija | I9: =IFERROR(INDEX(Zaposleni[Ostali ugovori],Odsečak),"") -> 20 | K9: Ukupna taksa i dedukcije | M9: =IFERROR(INDEX(Zaposleni[Takse i ugovori],Odsečak) + INDEX(Zaposleni[Ostali ugovori],Odsečak),"") -> 293.08
C10: Redovne dedukcije
K11: NETO DOHODAK | M11: =IFERROR(INDEX(Zaposleni[Neto dohodak],Odsečak),"") -> 266.92
C14: =Ime_preduzeća -> ADVENTURE WORKS
C15: PERIOD | D15: =Krajperioda -> 41372 | G15: IME | H15: =IFERROR(INDEX(Zaposleni[Ime zaposlenog],Odsečak),"") -> David Jović | K15: ID ZAPOSLENOG | L15: =IFERROR(INDEX(Zaposleni[ID],Odsečak),"") -> 1002
C16: Status takse | E16: =IFERROR(INDEX(Zaposleni[Status takse],Odsečak),"") -> 1 | G16: Državna izdvajanja (Od W-4) | I16: =IFERROR(INDEX(Zaposleni[Državne doz.],Odsečak),"") -> 1 | K16: Radni časovi | M16: =IFERROR(INDEX(Zaposleni[Red. radni časovi],Odsečak),"") -> 40
C17: Tarifa po času | E17: =IFERROR(INDEX(Zaposleni[Tarifa po času],Odsečak),"") -> 8 | G17: Stopa prekovremenog rada | I17: =IFERROR(INDEX(Zaposleni[Stopa prekovremenog rada],Odsečak),"") -> 0 | K17: Časovi bolovanja | M17: =IFERROR(INDEX(Zaposleni[Časovi bolovanja],Odsečak),"") -> 0
C18: Taksa socijalnog osiguranja | E18: =IFERROR(INDEX(Zaposleni[Taksa socijalnog osiguranja],Odsečak) * INDEX(Zaposleni[Bruto dohodak],Odsečak),"") -> 20.16 | G18: Državni porez dobitka | I18: =IFERROR(INDEX(Zaposleni[Državni porez dobitka],Odsečak) * INDEX(Zaposleni[Bruto dohodak],Odsečak),"") -> 89.6 | K18: Časovi odmora | M18: =IFERROR(INDEX(Zaposleni[Časovi odmora],Odsečak),"") -> 0
C19: Taksa za medicinsku negu | E19: =IFERROR(INDEX(Zaposleni[Taksa za medicinsku negu],Odsečak) * INDEX(Zaposleni[Bruto dohodak],Odsečak),"") -> 4.64 | G19: Državna taksa | I19: =IFERROR(INDEX(Zaposleni[Državna taksa],Odsečak) * INDEX(Zaposleni[Bruto dohodak],Odsečak),"") -> 7.36 | K19: Prekovremeni časovi | M19: =IFERROR(INDEX(Zaposleni[Prekovremeni časovi],Odsečak),"") -> 0
C20: Dedukcija osiguranja | E20: =IFERROR(INDEX(Zaposleni[Dedukcija osiguranja],Odsečak),"") -> 0 | G20: Ostala redovna dedukcija | I20: =IFERROR(INDEX(Zaposleni[Ostala red. dedukcija],Odsečak),"") -> 10 | K20: Bruto dohodak | M20: =IFERROR(INDEX(Zaposleni[Bruto dohodak],Odsečak),"") -> 320
C21: Ukupne takse i | E21: =IFERROR(INDEX(Zaposleni[Takse i ugovori],Odsečak),"") -> 131.76 | G21: Ostala dedukcija | I21: =IFERROR(INDEX(Zaposleni[Ostali ugovori],Odsečak),"") -> 0 | K21: Ukupna taksa i dedukcije | M21: =IFERROR(INDEX(Zaposleni[Takse i ugovori],Odsečak) + INDEX(Zaposleni[Ostali ugovori],Odsečak),"") -> 131.76
C22: Redovne dedukcije
K23: NETO DOHODAK | M23: =IFERROR(INDEX(Zaposleni[Neto dohodak],Odsečak),"") -> 188.24
C26: =Ime_preduzeća -> ADVENTURE WORKS
C27: PEROID | D27: =Krajperioda -> 41372 | G27: IME | H27: =IFERROR(INDEX(Zaposleni[Ime zaposlenog],Odsečak),"") -> Danijela Simić | K27: ID ZAPOSLENOG | L27: =IFERROR(INDEX(Zaposleni[ID],Odsečak),"") -> 1003
C28: Status takse | E28: =IFERROR(INDEX(Zaposleni[Status takse],Odsečak),"") -> 1 | G28: Državna izdvajanja (Od W-4) | I28: =IFERROR(INDEX(Zaposleni[Državne doz.],Odsečak),"") -> 3 | K28: Radni časovi | M28: =IFERROR(INDEX(Zaposleni[Red. radni časovi],Odsečak),"") -> 35
C29: Tarifa po času | E29: =IFERROR(INDEX(Zaposleni[Tarifa po času],Odsečak),"") -> 14 | G29: Stopa prekovremenog rada | I29: =IFERROR(INDEX(Zaposleni[Stopa prekovremenog rada],Odsečak),"") -> 0 | K29: Časovi bolovanja | M29: =IFERROR(INDEX(Zaposleni[Časovi bolovanja],Odsečak),"") -> 0
C30: Taksa socijalnog osiguranja | E30: =IFERROR(INDEX(Zaposleni[Taksa socijalnog osiguranja],Odsečak) * INDEX(Zaposleni[Bruto dohodak],Odsečak),"") -> 33.516 | G30: Državni porez dobitka | I30: =IFERROR(INDEX(Zaposleni[Državni porez dobitka],Odsečak) * INDEX(Zaposleni[Bruto dohodak],Odsečak),"") -> 148.96 | K30: Časovi odmora | M30: =IFERROR(INDEX(Zaposleni[Časovi odmora],Odsečak),"") -> 3
C31: Taksa za medicinsku negu | E31: =IFERROR(INDEX(Zaposleni[Taksa za medicinsku negu],Odsečak) * INDEX(Zaposleni[Bruto dohodak],Odsečak),"") -> 7.714 | G31: Državna taksa | I31: =IFERROR(INDEX(Zaposleni[Državna taksa],Odsečak) * INDEX(Zaposleni[Bruto dohodak],Odsečak),"") -> 12.236 | K31: Prekovremeni časovi | M31: =IFERROR(INDEX(Zaposleni[Prekovremeni časovi],Odsečak),"") -> 0
C32: Dedukcija osiguranja | E32: =IFERROR(INDEX(Zaposleni[Dedukcija osiguranja],Odsečak),"") -> 18 | G32: Ostala redovna dedukcija | I32: =IFERROR(INDEX(Zaposleni[Ostala red. dedukcija],Odsečak),"") -> 20 | K32: Bruto dohodak | M32: =IFERROR(INDEX(Zaposleni[Bruto dohodak],Odsečak),"") -> 532
C33: Ukupne takse i | E33: =IFERROR(INDEX(Zaposleni[Takse i ugovori],Odsečak),"") -> 240.426 | G33: Ostala dedukcija | I33: =IFERROR(INDEX(Zaposleni[Ostali ugovori],Odsečak),"") -> 0 | K33: Ukupna taksa i dedukcije | M33: =IFERROR(INDEX(Zaposleni[Takse i ugovori],Odsečak) + INDEX(Zaposleni[Ostali ugovori],Odsečak),"") -> 240.426
C34: Redovne dedukcije
K35: NETO DOHODAK | M35: =IFERROR(INDEX(Zaposleni[Neto dohodak],Odsečak),"") -> 291.574
C38: =Ime_preduzeća -> ADVENTURE WORKS
C39: PERIOD | D39: =Krajperioda -> 41372 | G39: IME | H39: =IFERROR(INDEX(Zaposleni[Ime zaposlenog],Odsečak),"") -> Sebastijan Morić | K39: ID ZAPOSLENOG | L39: =IFERROR(INDEX(Zaposleni[ID],Odsečak),"") -> 1008
C40: Status takse | E40: =IFERROR(INDEX(Zaposleni[Status takse],Odsečak),"") -> 1 | G40: Državna izdvajanja (Od W-4) | I40: =IFERROR(INDEX(Zaposleni[Državne doz.],Odsečak),"") -> 0 | K40: Radni časovi | M40: =IFERROR(INDEX(Zaposleni[Red. radni časovi],Odsečak),"") -> 50
C41: Tarifa po času | E41: =IFERROR(INDEX(Zaposleni[Tarifa po času],Odsečak),"") -> 20 | G41: Stopa prekovremenog rada | I41: =IFERROR(INDEX(Zaposleni[Stopa prekovremenog rada],Odsečak),"") -> 0 | K41: Časovi bolovanja | M41: =IFERROR(INDEX(Zaposleni[Časovi bolovanja],Odsečak),"") -> 1
C42: Taksa socijalnog osiguranja | E42: =IFERROR(INDEX(Zaposleni[Taksa socijalnog osiguranja],Odsečak) * INDEX(Zaposleni[Bruto dohodak],Odsečak),"") -> 70.56 | G42: Državni porez dobitka | I42: =IFERROR(INDEX(Zaposleni[Državni porez dobitka],Odsečak) * INDEX(Zaposleni[Bruto dohodak],Odsečak),"") -> 313.6 | K42: Časovi odmora | M42: =IFERROR(INDEX(Zaposleni[Časovi odmora],Odsečak),"") -> 5
C43: Taksa za medicinsku negu | E43: =IFERROR(INDEX(Zaposleni[Taksa za medicinsku negu],Odsečak) * INDEX(Zaposleni[Bruto dohodak],Odsečak),"") -> 16.24 | G43: Državna taksa | I43: =IFERROR(INDEX(Zaposleni[Državna taksa],Odsečak) * INDEX(Zaposleni[Bruto dohodak],Odsečak),"") -> 25.76 | K43: Prekovremeni časovi | M43: =IFERROR(INDEX(Zaposleni[Prekovremeni časovi],Odsečak),"") -> 0
C44: Dedukcija osiguranja | E44: =IFERROR(INDEX(Zaposleni[Dedukcija osiguranja],Odsečak),"") -> 15 | G44: Ostala redovna dedukcija | I44: =IFERROR(INDEX(Zaposleni[Ostala red. dedukcija],Odsečak),"") -> 0 | K44: Bruto dohodak | M44: =IFERROR(INDEX(Zaposleni[Bruto dohodak],Odsečak),"") -> 1120
C45: Ukupne takse i | E45: =IFERROR(INDEX(Zaposleni[Takse i ugovori],Odsečak),"") -> 441.16 | G45: Ostala dedukcija | I45: =IFERROR(INDEX(Zaposleni[Ostali ugovori],Odsečak),"") -> 0 | K45: Ukupna taksa i dedukcije | M45: =IFERROR(INDEX(Zaposleni[Takse i ugovori],Odsečak) + INDEX(Zaposleni[Ostali ugovori],Odsečak),"") -> 441.16
C46: Redovne dedukcije
K47: NETO DOHODAK | M47: =IFERROR(INDEX(Zaposleni[Neto dohodak],Odsečak),"") -> 678.84
